Cogmind - Beta 16 @@@ ROGUE MODE // 2025.12.12 @ 22:20:26 Player: Keyes Result: Destroyed by Q7-0U8(R) with Subdweller Laser Performance ------------- Evolutions (0) 0 Regions Visited (3) 600 Robots Destroyed (25) 125 Value Destroyed (760) 760 Prototype IDs (4) 80 Alien Tech Used (0) 0 Bonus (0) 0 TOTAL SCORE: 1565 Bonus ------- None Cogmind --------- Core Integrity 0/250 Matter 233/300 Energy 84/100 System Corruption 0% Temperature Cool (6) Movement Rolling (110) Location -10/Subcaves Parts ------- > --- POWER (1) -------- (None) > --- PROPULSION (2) --- Carbon-fiber Leg Subdweller Monowheel > --- UTILITY (2) ------ Signal Interpreter Targeting Computer > --- WEAPON (2) ------- Light Assault Rifle > --- INVENTORY (5) ---- Light Nuclear Core Carbon-fiber Leg Carbon-fiber Leg High-capacity Storage Unit Peak State ------------ > --- POWER ------------ Subdweller Power Source > --- PROPULSION ------- Carbon-fiber Leg Subdweller Monowheel > --- UTILITY ---------- High-capacity Storage Unit Signal Interpreter > --- WEAPON ----------- Subdweller Beam Cannon Battle Rifle > --- INVENTORY -------- Light Nuclear Core Carbon-fiber Leg Carbon-fiber Leg Targeting Computer Light Assault Rifle SUBCON Basin [Rating: 32] Favorites ----------- Power Ion Engine Engine Ion Engine Propulsion Wheel Treads Light Treads Leg Aluminum Leg Wheel Wheel Utility High-capacity Storage Unit Device Seismic Detector Storage High-capacity Storage Unit Processor Signal Interpreter Weapon Light Assault Rifle Energy Gun EM Pulse Gun Energy Cannon Subdweller Beam Cannon Ballistic Gun Light Assault Rifle Launcher Grenade Launcher Build | -11 -10 -10 -10 ------- Run | Yrd Mat Min Sub Slots Evolved . | . . . . Power . | . . . . Propulsion . | . . . . Utility . | . . . . Weapon . | . . . . Parts Attached 25 | 7 7 . 11 Power 3 | 1 . . 2 Engine 3 | 1 . . 2 Core . | . . . . Reactor . | . . . . Propulsion 8 | 2 2 . 4 Treads 1 | . 1 . . Leg 2 | 1 . . 1 Wheel 5 | 1 1 . 3 Hover . | . . . . Flight . | . . . . Utility 5 | 2 2 . 1 Device 1 | 1 . . . Storage 2 | 1 1 . . Processor 2 | . 1 . 1 Hackware . | . . . . Protection . | . . . . Artifact . | . . . . Weapon 9 | 2 3 . 4 Energy Gun 2 | 1 1 . . Energy Cannon 1 | . . . 1 Ballistic Gun 4 | 1 1 . 2 Ballistic Cannon . | . . . . Launcher 2 | . 1 . 1 Special Weapon . | . . . . Impact Weapon . | . . . . Slashing Weapon . | . . . . Piercing Weapon . | . . . . Special Melee Weapon . | . . . . Unidentified Prototypes . | . . . . Parts Lost 11 | . 3 . 8 Power 2 | . . . 2 Propulsion 2 | . . . 2 Utility 1 | . 1 . . Weapon 6 | . 2 . 4 Highest Loss Streak 3 | . 1 . 3 To Critical Strikes . | . . . . Average Backups 10 | 1 7 17 10 Power 2 | 1 2 3 2 Propulsion 2 | . 2 4 2 Utility 2 | . 2 4 2 Weapon 1 | . . 3 2 Tool/Special . | . . . . Unused Backups 14 | . . 2 12 Power 3 | . . . 3 Propulsion 5 | . . 2 3 Utility 4 | . . . 4 Weapon 2 | . . . 2 Tool/Special . | . . . . Average Slot Usage (%) 94 | . 93 100 92 Engine 13 | . 14 14 12 Treads 1 | . 3 . . Leg 3 | . 3 . 5 Wheel 22 | . 20 28 19 Device 2 | . 4 . . Storage 13 | . 14 14 13 Processor 10 | . 6 14 14 Energy Gun 8 | . 9 14 3 Energy Cannon 1 | . . . 3 Ballistic Gun 15 | . 13 14 17 Launcher 1 | . 2 . 1 Peak Build Rating 32 | 7 8 9 32 Average Rating 10 | 4 6 8 20 On Entrance 6 | . 7 8 9 Avg Prop Armor Cover (%) 11 | 11 11 . 9 Naked Turns . | . . . . Heaviest Build 55 | 14 49 48 55 Greatest Support 20 | 10 20 20 20 Greatest Overweight (x) 4 | 1 4 2 4 Average Overweight (x) 2 | . 2 2 2 Largest Inventory Capacity 20 | 8 20 20 20 Average Capacity 18 | 6 17 20 19 Most Carried 20 | 5 12 18 20 Average Carried 12 | 2 7 17 19 Final Capacity 20 | 8 20 20 5 Final Carried 18 | 5 12 18 4 Class Distribution -------------------- 89% | Mutant 10% | Scavenger-Mutant Dominant Class ---------------- Mutant | -10/Materials Mutant | -10/Mines Mutant | -10/Subcaves Resources | -11 -10 -10 -10 ----------- Run | Yrd Mat Min Sub Matter Collected 706 | 252 127 82 245 Remotely . | . . . . Salvage Created 613 | 47 295 45 226 Parts 50 | 8 19 7 16 Haulers Intercepted . | . . . . Recyclers Shooed 1 | . 1 . . Parts Field Recycled . | . . . . Retrieved Matter . | . . . . Parts Self-Destructed 2 | . . . 2 Prevented . | . . . . Parts Restored . | . . . . Kills | -11 -10 -10 -10 ------- Run | Yrd Mat Min Sub Combat Hostiles Destroyed 21 | . 12 . 9 Guns 9 | . 7 . 2 AOE 12 | . 5 . 7 Classes Destroyed 4 | 1 2 . 1 Tunneler 4 | 2 . 2 . Swarmer 3 | . 3 . . Grunt 9 | . 9 . . Subdweller 9 | . . . 9 Best Kill Streak 8 | 2 4 1 8 Combat Bots Only 8 | . 4 . 8 Max Kills in Single Turn 2 | 1 2 1 2 Gunslinging . | . . . . Exploded 2 | . 2 . 2 Melee . | . . . . Uniques/NPCs Destroyed . | . . . . Combat | -11 -10 -10 -10 -------- Run | Yrd Mat Min Sub Hostile Shots Fired 126 | . 79 . 47 Missed 36 | . 22 . 14 Hits 90 | . 57 . 33 Projectile 90 | . 57 . 33 Critical Strikes 5 | . 4 . 1 Damage Taken 1356 | . 689 . 667 Core 264 | . 102 . 162 Absorbed by Shields . | . . . . Core Remaining (%) 100 | 100 . . . Volleys Fired 76 | 3 45 4 24 Largest 2 | 2 2 2 2 Hottest 105 | 60 60 60 105 Shots Fired 114 | 6 66 8 34 Gun 84 | 6 55 8 15 Cannon 5 | . . . 5 Launcher 25 | . 11 . 14 Special . | . . . . Kinetic 60 | 3 38 4 15 Thermal 5 | . . . 5 Explosive 25 | . 11 . 14 Electromagnetic 24 | 3 17 4 . Robot Hit Streak 9 | 2 7 3 9 Robot Miss Streak 3 | 2 2 3 2 Penetration Max . | . . . . Secondary Targets 2 | . 1 . 1 Max Gunslinging Chain 1 | . 1 . 1 Shots Hit Robots 73 | 2 40 3 28 Core Hits 45 | 2 21 2 20 Critical Kills 1 | . . . 1 Critical Parts Destroyed . | . . . . Critical Strikes 1 | . . . 1 Destroy 1 | . . . 1 Melee Attacks . | . . . . Impact . | . . . . Slashing . | . . . . Piercing . | . . . . Sneak Attacks . | . . . . Combat Hostiles . | . . . . Follow-up Attacks . | . . . . Damage Inflicted 2735 | 24 1088 35 1588 Guns 556 | 24 341 35 156 Cannons 77 | . . . 77 Explosions 2096 | . 741 . 1355 Melee . | . . . . Ramming 6 | . 6 . . Kinetic 357 | . 191 10 156 Thermal 77 | . . . 77 Explosive 2096 | . 741 . 1355 Electromagnetic 199 | 24 150 25 . Impact . | . . . . Slashing . | . . . . Piercing . | . . . . Highest Corruption . | . . . . Average Corruption . | . . . . Corruption Purged . | . . . . Corruption Blocked . | . . . . Overload Shots . | . . . . Overflow Damage 15 | . 15 . . Projectiles . | . . . . Explosions 15 | . 15 . . Melee . | . . . . Knockbacks . | . . . . Impact . | . . . . Kinetic . | . . . . Secondary . | . . . . Self-Inflicted Damage 22 | . 22 . . Shots 1 | . 1 . . Rammed 1 | . 1 . . Targets Rammed 1 | . 1 . . Kicked . | . . . . Crushed . | . . . . Highest Temperature 78 | 20 78 20 54 Average Temperature 27 | 15 29 15 26 Received Heat Transfer 588 | . 450 . 138 Siege Activations . | . . . . Martial Activations . | . . . . Shielding Activations . | . . . . Robots Disrupted . | . . . . Combat Hostiles . | . . . . Robots Corrupted . | . . . . Combat Hostiles . | . . . . Parts Fried 1 | . 1 . . Impact Corruptions . | . . . . Robots Melted . | . . . . Combat Hostiles . | . . . . Parts Melted . | . . . . Heat Transferred 111 | . . . 111 Parts Sabotaged . | . . . . Parts Stolen . | . . . . Parts Stripped . | . . . . Power Chain Reactions . | . . . . Alert | -11 -10 -10 -10 ------- Run | Yrd Mat Min Sub Maximum Alert Level . | . . . . Low Security (%) 100 | 100 100 100 . Level 1 . | . . . . Level 2 . | . . . . Level 3 . | . . . . Level 4 . | . . . . Level 5 . | . . . . High Security . | . . . . Max Security . | . . . . Peak Influence 139 | 10 139 33 . Initial 28 | . . 28 . Average 24 | . 36 5 . Influence Increases 400 | 10 380 10 . Destroy 0b10 Robot/C 240 | . 240 . . Destroy 0b10 Robot/NC 20 | 10 . 10 . Destroy Leader 50 | . 50 . . Successful Hack 26 | . 26 . . Disable Machine 15 | . 15 . . Destroy Structure 19 | . 19 . . Lose Combat Pursuer 30 | . 30 . . Influence Decreases 400 | 10 305 85 . Entered New Map 47 | . . 47 . Time Decay 214 | 10 166 38 . Lost Part 20 | . 20 . . Purge Threat 119 | . 119 . . Squads Dispatched 3 | . 3 . . Investigation 2 | . 2 . . Extermination . | . . . . Reinforcement 1 | . 1 . . Assault . | . . . . Garrison . | . . . . Intercept . | . . . . Searches Triggered . | . . . . Construction Impeded . | . . . . Haulers Reinforced . | . . . . Active Scanning Responses . | . . . . Cargo Convoy Interrupts . | . . . . Stealth | -11 -10 -10 -10 --------- Run | Yrd Mat Min Sub Distress Signals . | . . . . Communications Jammed . | . . . . Distress Signals . | . . . . Times Spotted 45 | . 20 . 25 Peak Tracking Total 10 | . 5 . 10 Tactical Retreats 5 | . 2 . 3 Traps | -11 -10 -10 -10 ------- Run | Yrd Mat Min Sub Traps Triggered 2 | . 2 . . Indirectly . | . . . . Trap Hack Attempts . | . . . . Triggered . | . . . . Disarmed 4 | . 4 . . Reprogrammed . | . . . . Reused . | . . . . Traps Extracted . | . . . . Installed . | . . . . Triggered . | . . . . Machines | -11 -10 -10 -10 ---------- Run | Yrd Mat Min Sub Machines Disabled 1 | . 1 . . Max in Single Turn 1 | . 1 . . Machines Repaired . | . . . . Machines Dismantled . | . . . . Machines Sabotaged . | . . . . Overloaded Fab Kills . | . . . . Hacking | -11 -10 -10 -10 --------- Run | Yrd Mat Min Sub Machines Accessed 8 | . 6 . 2 Terminals 6 | . 6 . . Fabricators . | . . . . Repair Stations . | . . . . Recycling Units . | . . . . Scanalyzers . | . . . . Garrison Access . | . . . . Total Hacks 24 | . 21 . 3 Successful 16 | . 13 . 3 Failed 8 | . 8 . . Catastrophic 2 | . 2 . . Database Lockouts . | . . . . Manual 11 | . 11 . . Terminals 21 | . 21 . . Fabricators . | . . . . Repair Stations . | . . . . Recycling Units . | . . . . Scanalyzers . | . . . . Garrison Access . | . . . . Terminal Hacks 15 | . 12 . 3 Record 2 | . 1 . 1 Robot Analysis 2 | . 2 . . Prototype ID Bank 2 | . 2 . . Open Door 1 | . . . 1 Terminal Index 1 | . 1 . . Alert Level 1 | . 1 . . Unreport Threat 2 | . 2 . . Locate Traps 1 | . 1 . . Disarm Traps 1 | . 1 . . Zone Layout 1 | . 1 . . Release Object 1 | . . . 1 Fabricator Hacks . | . . . . Repair Station Hacks . | . . . . Recycling Unit Hacks . | . . . . Scanalyzer . | . . . . Garrison Access Hacks . | . . . . Unauthorized Hacks 1 | . 1 . . Terminals 1 | . 1 . . Botnet 1 | . 1 . . Fabricators . | . . . . Repair Stations . | . . . . Recycling Units . | . . . . Scanalyzers . | . . . . Garrison Access . | . . . . Data Cores Recovered . | . . . . Used . | . . . . Hacking Detections 4 | . 4 . . Full Trace Events 3 | . 3 . . Feedback Events . | . . . . Feedback Blocked . | . . . . Robot Schematics Acquired . | . . . . Robots Built . | . . . . Authchips . | . . . . Time . | . . . . Total Robot Build Rating . | . . . . Part Schematics Acquired . | . . . . Parts Built . | . . . . Authchips . | . . . . Time . | . . . . Total Part Build Rating . | . . . . Part Studies Acquired . | . . . . Parts Repaired . | . . . . Time . | . . . . Parts Recycled . | . . . . Recycled Matter . | . . . . Retrieved Matter . | . . . . Retrieved Components . | . . . . Parts Scanalyzed . | . . . . Part Schematics Acquired . | . . . . Parts Damaged . | . . . . Bothacking | -11 -10 -10 -10 ------------ Run | Yrd Mat Min Sub Used RIF Installer . | . . . . Robots Hacked . | . . . . Non-combat . | . . . . Combat . | . . . . Robot Hacks Applied . | . . . . Relay Couplers Released . | . . . . Fabnet Peak Effective % . | . . . . Robots Rewired . | . . . . Allies Hacked . | . . . . Hacks Repelled . | . . . . Allies | -11 -10 -10 -10 -------- Run | Yrd Mat Min Sub Total Allies . | . . . . Largest Group . | . . . . Highest-Rated Group . | . . . . Highest-Rated Ally . | . . . . Total Orders . | . . . . Ally Attacks . | . . . . Total Damage . | . . . . Kills . | . . . . Allies Corrupted . | . . . . Allies Melted . | . . . . Intel | -11 -10 -10 -10 ------- Run | Yrd Mat Min Sub Active Infowar (turns) 207 | 11 196 . . Seismic 207 | 11 196 . . Robot Analysis Total 2 | . 2 . . Derelict Logs Recovered 2 | . . 1 1 Drone Launches . | . . . . Drone Recoveries . | . . . . Exploration | -11 -10 -10 -10 ------------- Run | Yrd Mat Min Sub Turns Passed 1433 | 75 634 325 399 Spaces Moved 994 | 55 418 270 251 Core 3 | 3 . . . Treads 1 | . 1 . . Legs . | . . . . Wheels 990 | 52 417 270 251 Hover . | . . . . Flight . | . . . . Fastest Speed 50 | 50 80 110 110 Average Speed 112 | 87 111 110 121 Slowest Speed 320 | 95 320 110 140 Overloaded Moves . | . . . . Propulsion Burnouts . | . . . . Robots Hopped . | . . . . Potential Cave-ins . | . . . . Cave-ins Triggered . | . . . . Exploration Rate (%) 36 | 4 66 66 11 Regions Visited 3 Branch Regions 2 Pre-discovered Areas . | . . . . Known Exits Taken 2 | . 1 1 . Unknown Exits Taken 1 | 1 . . . Scrap Searched 1 | . . 1 . Spaces Dug . | . . . . Terrain Destroyed 95 | . 19 . 76 Melee . | . . . . Projectile 1 | . . . 1 AOE 94 | . 19 . 75 Terrain Rammed . | . . . . Walls Destroyed . | . . . . Machines Disabled . | . . . . Actions | -11 -10 -10 -10 --------- Run | Yrd Mat Min Sub Total 1211 | 75 525 291 320 Wait 56 | . 40 8 8 Move 991 | 54 417 269 251 Hop . | . . . . Pick Up 35 | 11 11 8 5 Fast Attach 5 | 1 . . 4 Attach 13 | 6 3 . 4 Detach . | . . . . Swap 13 | . 7 . 6 Drop 21 | . 1 2 18 Fire 76 | 3 45 4 24 Melee . | . . . . Ram 1 | . 1 . . Kick . | . . . . Crush . | . . . . Escape Stasis . | . . . . Rewire . | . . . . Trap . | . . . . Miscellaneous . | . . . . Route ------- -11/Scrapyard -10/Materials (discovered 3 exits: *Mat x2 / *Min) -10/Mines (discovered 2 exits: *Mat / *Sub) -10/Subcaves History --------- Turn | Location | Event 12 | -11/Scrapyard | Discovered new exit (range 15) 76 | -11/Scrapyard | Entered Materials 247 | -10/Materials | Discovered new exit (range 6) 300 | -10/Materials | Build established: Mutant 347 | -10/Materials | Discovered new exit (range 16) 437 | -10/Materials | Identified exit to Materials 554 | -10/Materials | Identified exit to Mines 576 | -10/Materials | Derelicts attacked the area 645 | -10/Materials | Discovered exit to Materials (range 3) 710 | -10/Materials | Entered Mines 832 | -10/Mines | Discovered exit to Materials (range 11) 852 | -10/Mines | YI-UF0 nonchalantly dropped a Grenade Launcher on the ground 876 | -10/Mines | Learned 2 Materials zone layouts 1026 | -10/Mines | Discovered new exit (range 9) 1033 | -10/Mines | Identified exit to Subcaves 1035 | -10/Mines | Entered Subcaves 1036 | -10/Subcaves | Approached by a straggling Scientist 1037 | -10/Subcaves | Learned Materials terminal intel 1119 | -10/Subcaves | Ambushed by swarm of Subdwellers 1187 | -10/Subcaves | Found SUBCON Basin 1210 | -10/Subcaves | Core integrity fell below 50% 1251 | -10/Subcaves | Destroyed 8 combat bots 1330 | -10/Subcaves | Core integrity fell below 20% 1434 | -10/Subcaves | Destroyed by Q7-0U8(R) with Subdweller Laser Last Messages --------------- 01280_ Acquired 104 matter. 01283_ Acquired 86 matter. 01285_ Dropped Lgt. Ion Engine. 01286_ Acquired Sub. Power Source. 01287_ Acquired 10 matter. 01293_ Dropped Wheel. 01295_ Dropped Lgt. Ion Engine. 01298_ Acquired Carbon-fiber Leg. 01309_ Acquired 10 matter. 01330_ Grenade Launcher destroyed. 01332_ Acquired Sub. Beam Cannon. 01346_ Q7-0U8(R) affixes Scrap Shield Fragment to Scrap Shield. 01366_ Acquired 18 matter. 01416_ Dropped SUBCON Basin. 01421_ L1-7S8(R) suffers critical hit (Destroy). 01421_ L1-7S8(R) destroyed. 01432_ Sub. Power Source destroyed. 01433_ Sub. Beam Cannon destroyed. 01433_ Battle Rifle destroyed. Map ----- +----------------------------------------------------+ | ?????????????????????????????????????????????????? | | ?????????????????????????????????????????????????? | | ?????????????????????????????????????????????????? | | ?????????????????????????????????????????????????? | | ?????????????????????????????????????????????????? | | ?????????????????????????????????????????????????? | | ?????????????????????????????????????????????????? | | ?????????????????????????????????????????????????? | | ?????????????????????????????????????????????????? | | ?????????????????????????????????????????????????? | | ?????????????????????????????????????????????????? | | ?????????????????????????????????????????????????? | | ?????????????????????????????????????????????????? | | ?????????????????????????????????????????????????? | | ?????????????????????????????????????????????????? | | ?????????????????????????????????????????????????? | | ?????????????????????????????????????????????????? | | ?????????????????????????????????????????????????? | | ?????????????????????????????????????????????????? | | ?????????????????????????????????????????????????? | | ?????????????????????###?????????????????????????? | | ??????????? ?????### #?#####??????????????????? | | ???????????? R%! ### ## ##?????????????????? | | ??????????????# = ##????????????????? | | ??????????????# ####?????????????? | | ??????????????????#; @ R #?????????????? | | ??????????????????#### ## R #?????????????? | | ?????????????????????# ### ! ##?????????????? | | ????????????????????# ####??????????????? | | ????????????????????# #### #?????????????????? | | ????????????????????# ????# ##????????????????? | | ????????????????????## ?????# #????????????????? | | ????????????????????## ???## ##????????????????? | | ????????????????????# ### #?????????????????? | | ???????????????????# ##????????????????? | | ???????????????????# ## #????????????????? | | ???????????????????# ????### #????????????????? | | ???????????????????????###?## ## #?????????????? | | ??????????????????????## ### #?????????????? | | ??????????????????????# ##?????????????? | | ?????????????????????## # # ##??????????????? | | ?????????????????????# ##### #???????????????? | | ?????????????????????# ### #???????????????? | | ?????????????????????# ######?######??????? | | ?????????????????????# # ### # #??????? | | ?????????????????????# ### = ##?????? | | ?????????????????????## #?## # ### # #?????? | | ??????????????????????# #??#######?#### #?????? | | ??????????????????????####????????????### ##????? | | ?????????????????????????????????????## ####?? | +----------------------------------------------------+ Best States ------------- Heat Dissipation 25 Energy Generation 15 Energy Capacity 250 Matter Stores 300 Matter Capacity 300 Sight Range 16 Terrain Scan Density 10 Evasion (%) 44 Targeting Accuracy 5 Recoil Reduction 1 Item Schematics ----------------- None Robot Schematics ------------------ None Fabricated ------------ Nothing Repaired ---------- Nothing Studied --------- None Alien Tech Used ----------------- None Achievements -------------- For Emergencies Only root@ Challenges ------------ None Game ------ Seed ScrapoidHybridShotgun Manual? 0 Play Time 00:38:43 Cumulative 16.1 hours Start 2025.12.12 @ 21:38:37 End 2025.12.12 @ 22:20:26 Sessions 1 Manual Loads 0 Difficulty Rogue Special Mode None Game No. 17 Rogue 17 Adventurer 0 Explorer 0 Win Type - Total 0 Types 0/0/0/0/0/0/0/0/0/0 Lore% 19 Gallery% 20 Achievement% 10 Wizard Run 0 Options --------- Layout 1 ASCII 0 Keyboard 0 Movement Mouse Keybinds 0 Fullscreen 2 Font 48/Tamsyn++ Map View 50x35 Zoom Use 0% Tactical HUD 1 Map Filters NONE Filters NONE Steam 1 RUN: 44f9659d-ab34-4c3a-a5f5-7d4fc0e43844